bitfinex-derivatives/quotes_SOLF0:USTF0_20260104
["timestamp","ask_amount","ask_price","bid_price","bid_amount"]
[1767492623852,6.77289292,133.89,133.84,0.0488553]
[1767492624052,5.86056179,133.88,133.84,0.0488553]
[1767492624257,6.77289292,133.89,133.84,0.0488553]
[1767492624458,5.86214855,133.88,133.84,0.0488553]
[1767492624658,6.77289292,133.89,133.84,0.0488553]
[1767492624858,5.86214587,133.88,133.84,0.0488553]
[1767492625060,6.77289292,133.89,133.84,0.0488553]
[1767492625261,5.86251275,133.88,133.84,0.0488553]
[1767492625460,6.77289292,133.89,133.84,0.0488553]
[1767492625662,5.86377158,133.88,133.84,0.0488553]
[1767492625858,6.77289292,133.89,133.84,0.0488553]
[1767492626063,5.86372086,133.88,133.84,0.0488553]
[1767492626361,5.86552445,133.87,133.84,0.0488553]
[1767492626558,6.7256,133.88,133.84,0.0488553]
[1767492626758,5.86561716,133.87,133.84,0.0488553]
[1767492626958,6.7256,133.88,133.84,0.0488553]
[1767492627158,5.86561716,133.87,133.84,0.0488553]
[1767492627366,6.7256,133.88,133.84,0.0488553]
[1767492627567,5.86763866,133.87,133.84,0.0488553]
[1767492627770,6.7256,133.88,133.84,0.0488553]
[1767492627963,5.86754592,133.87,133.84,0.0488553]
[1767492628164,6.7256,133.88,133.84,0.0488553]
[1767492628470,5.86784839,133.87,133.84,0.0488553]
[1767492628669,7.94206328,133.88,133.84,0.0488553]
[1767492628871,5.8699156,133.87,133.84,0.0488553]
[1767492629060,7.94206328,133.88,133.84,0.0488553]
[1767492629266,5.87018677,133.87,133.84,0.0488553]
[1767492629459,7.94206328,133.88,133.84,0.0488553]
[1767492629764,5.87253673,133.87,133.84,0.0488553]
[1767492629962,7.94206328,133.88,133.84,0.0488553]
[1767492630169,5.87244391,133.87,133.84,0.0488553]
[1767492630372,7.94206328,133.88,133.84,0.0488553]
[1767492630573,5.87958853,133.87,133.84,0.0488553]
[1767492630870,7.94206328,133.88,133.84,0.0488553]
[1767492631069,5.87921516,133.87,133.84,0.0488553]
[1767492631370,5.88158029,133.86,133.84,0.0488553]
[1767492631574,7.94206328,133.88,133.84,0.0488553]
[1767492631875,5.88158029,133.87,133.84,0.0488553]
[1767492632074,5.88158029,133.86,133.84,0.0488553]
[1767492632263,7.94206328,133.88,133.84,0.0488553]
[1767492632466,1.21646328,133.86,133.79,3.39368093]
[1767492633570,0.04945138,133.84,133.81,0.05155665]
[1767492636774,5.88277511,133.83,133.81,0.05155665]
[1767492636977,0.04945138,133.84,133.81,0.05155665]
[1767492637180,5.88277242,133.83,133.81,0.05155665]
[1767492637373,0.04945138,133.84,133.81,0.05155665]
[1767492637582,5.92915033,133.83,133.81,0.05155665]
[1767492637788,0.04945138,133.84,133.81,0.05155665]
[1767492637973,5.92917258,133.83,133.81,0.05155665]
[1767492638172,0.04945138,133.84,133.81,0.05155665]
[1767492638383,5.92762814,133.83,133.81,0.05155665]
[1767492638583,0.04945138,133.84,133.81,0.05155665]
[1767492638782,5.92807818,133.83,133.81,0.05155665]
[1767492639084,0.04945138,133.84,133.81,0.05155665]
[1767492639382,5.92713975,133.83,133.81,0.05155665]
[1767492639584,0.04945138,133.84,133.81,0.05155665]
[1767492640881,5.93012385,133.83,133.81,0.05155665]
[1767492641076,0.04945138,133.84,133.81,0.05155665]
[1767492641273,5.93169168,133.83,133.81,0.05155665]
[1767492641476,0.04945138,133.84,133.81,0.05155665]
[1767492641678,5.93332238,133.83,133.81,0.05155665]
[1767492641873,0.04945138,133.84,133.81,0.05155665]
[1767492642074,5.93332238,133.83,133.81,0.05155665]
[1767492642281,0.04945138,133.84,133.81,0.05155665]
[1767492642481,5.93435054,133.83,133.81,0.05155665]
[1767492642786,0.04945138,133.84,133.81,0.05155665]
[1767492642984,5.9345601,133.83,133.81,0.05155665]
[1767492643178,0.04945138,133.84,133.81,0.05155665]
[1767492643381,5.93406014,133.83,133.81,0.05155665]
[1767492643576,0.04945138,133.84,133.81,0.05155665]
[1767492643780,5.93471712,133.83,133.81,0.05155665]
[1767492643982,0.04945138,133.84,133.81,0.05155665]
[1767492644183,5.93468951,133.83,133.81,0.05155665]
[1767492644382,0.04945138,133.84,133.81,0.05155665]
[1767492644588,5.93457198,133.83,133.81,0.05155665]
[1767492644784,0.04945138,133.84,133.81,0.05155665]
[1767492644985,5.93457198,133.83,133.81,0.05155665]
[1767492645187,0.04945138,133.84,133.81,0.05155665]
[1767492645377,5.93412478,133.83,133.81,0.05155665]
[1767492645679,0.04945138,133.84,133.81,0.05155665]
[1767492645883,5.93412478,133.83,133.81,0.05155665]
[1767492646080,0.04945138,133.84,133.81,0.05155665]
[1767492646282,5.93420497,133.83,133.81,0.05155665]
[1767492646480,0.04945138,133.84,133.81,0.05155665]
[1767492646687,5.93493814,133.83,133.81,0.05155665]
[1767492646888,0.04945138,133.84,133.81,0.05155665]
[1767492647082,5.93569495,133.83,133.81,0.05155665]
[1767492647282,0.04945138,133.84,133.81,0.05155665]
[1767492647491,5.93551615,133.83,133.81,0.05155665]
[1767492647691,0.04945138,133.84,133.81,0.05155665]
[1767492647890,5.93430558,133.83,133.78,3.39368093]
[1767492648092,0.04945138,133.84,133.78,3.39368093]
[1767492648285,5.93452639,133.83,133.78,3.39368093]
[1767492648488,0.04945138,133.84,133.78,3.39368093]
[1767492648686,5.93288223,133.83,133.78,3.39368093]
[1767492648890,0.04945138,133.84,133.78,3.39368093]
[1767492649087,5.93288223,133.83,133.79,0.05036798]
[1767492649288,0.04945138,133.84,133.79,0.05036798]
[1767492649484,5.93239141,133.83,133.79,0.05036798]
[1767492649687,0.04945138,133.84,133.79,0.05036798]
[1767492649883,5.93238698,133.83,133.79,0.05036798]
[1767492650088,0.04945138,133.84,133.79,0.05036798]
[1767492650288,5.93190759,133.83,133.79,0.05036798]
[1767492650488,0.04945138,133.84,133.79,0.05036798]
[1767492650786,5.93098486,133.83,133.79,0.05036798]
[1767492650986,0.04945138,133.84,133.79,0.05036798]
[1767492651188,5.93098479,133.83,133.79,0.05036798]
[1767492651388,0.04945138,133.84,133.79,0.05036798]
[1767492651694,5.93058534,133.83,133.79,0.05036798]
[1767492651896,5.93041231,133.82,133.79,0.05036798]
[1767492652096,0.04945138,133.84,133.79,0.05036798]
[1767492652396,5.92981315,133.83,133.79,0.05036798]
[1767492652598,5.9295071,133.82,133.79,0.05036798]
[1767492652801,1.21646328,133.83,133.79,0.05036798]
[1767492652997,5.92950164,133.82,133.79,0.05036798]
[1767492653198,1.21646328,133.83,133.79,0.05036798]
[1767492653389,5.92881026,133.82,133.79,0.05036798]
[1767492653591,1.21646328,133.83,133.79,0.05036798]
[1767492653789,5.92883947,133.82,133.79,0.05036798]
[1767492653991,1.21646328,133.83,133.79,0.05036798]
[1767492654194,5.92885036,133.82,133.79,0.05036798]
[1767492654393,1.21646328,133.83,133.79,0.05036798]
[1767492654599,5.92830539,133.82,133.79,0.05036798]
[1767492654899,1.26591466,133.84,133.79,0.05036798]
[1767492655095,5.92782997,133.83,133.79,0.05036798]
[1767492655293,5.92782997,133.82,133.79,0.05036798]
[1767492655494,1.26591466,133.84,133.79,0.05036798]
[1767492655695,5.92607023,133.83,133.79,0.05036798]
[1767492655997,5.92607023,133.82,133.79,0.05036798]
[1767492656194,1.26591466,133.84,133.79,0.05036798]
[1767492656392,5.92480282,133.83,133.79,0.05036798]
[1767492656587,5.92480282,133.82,133.79,0.05036798]
[1767492656787,1.26591466,133.84,133.79,0.05036798]
[1767492656989,5.92533551,133.83,133.79,0.05036798]
[1767492657199,5.92533551,133.82,133.79,0.05036798]
[1767492657400,1.26591466,133.84,133.79,0.05036798]
[1767492657594,5.9254563,133.83,133.79,0.05036798]
[1767492657792,5.9254563,133.82,133.79,0.05036798]
[1767492657995,1.26591466,133.84,133.79,0.05036798]
[1767492658194,5.92582482,133.83,133.79,0.05036798]
[1767492658401,5.92582482,133.82,133.79,0.05036798]
[1767492658591,1.26591466,133.84,133.79,0.05036798]
[1767492658902,1.21646328,133.82,133.79,0.05036798]
[1767492659800,1.21646328,133.8,133.77,8.134e-05]
[1767492660000,1.21646328,133.8,133.73,3.42343713]
[1767492660001,5.92362266,133.79,133.73,3.42343713]
[1767492660196,1.21646328,133.8,133.73,3.42343713]
[1767492660401,5.92335701,133.79,133.73,3.42343713]
[1767492660699,1.21646328,133.8,133.73,3.42343713]
[1767492660900,0.05088037,133.77,133.75,0.04756287]
[1767492661299,88.32,133.81,133.75,3.471]
[1767492661499,5.92709066,133.8,133.75,3.471]
[1767492661699,1.21646328,133.82,133.75,3.471]
[1767492661899,5.92758293,133.81,133.76,3.42343713]
[1767492662101,5.92758293,133.8,133.76,3.42343713]
[1767492662302,0.05506606,133.79,133.77,0.04710787]
[1767492666200,0.05506606,133.79,133.73,3.42343713]
[1767492667209,0.05506606,133.79,133.75,0.05715155]
[1767492667909,0.03506606,133.79,133.75,0.05715155]
[1767492676827,7.94696328,133.78,133.71,88.32]
[1767492677124,7.94696328,133.78,133.72,3.42343713]
[1767492677623,1.21646328,133.78,133.72,3.42343713]
[1767492678014,6.7297,133.8,133.74,0.05741352]
[1767492678213,5.92584585,133.79,133.74,3.48085065]
[1767492678416,1.21646328,133.81,133.74,3.48085065]
[1767492678615,5.92580181,133.8,133.74,3.48085065]
[1767492678815,1.21646328,133.81,133.74,3.48085065]
[1767492679025,0.05623028,133.79,133.74,3.48085065]
[1767492682927,88.34,133.82,133.76,3.42343713]
[1767492683117,5.92796484,133.81,133.76,3.42343713]
[1767492683323,88.34,133.82,133.76,3.42343713]
[1767492683518,5.92837822,133.81,133.76,3.42343713]
[1767492683731,7.94476328,133.83,133.76,3.42343713]
[1767492683931,0.05272429,133.81,133.78,0.05722915]
[1767492686934,5.92954061,133.8,133.75,3.42343713]
[1767492687136,0.05272429,133.81,133.75,3.42343713]
[1767492687336,5.9298751,133.8,133.75,3.42343713]
[1767492687526,0.05272429,133.81,133.75,3.42343713]
[1767492687833,5.9298751,133.8,133.75,3.42343713]
[1767492688037,0.05272429,133.81,133.77,0.05022704]
[1767492688233,5.93025063,133.8,133.77,0.05022704]
[1767492688431,0.05272429,133.81,133.77,0.05022704]
[1767492688632,5.9304224,133.8,133.77,0.05022704]
[1767492688928,0.05272429,133.81,133.77,0.05022704]
[1767492689129,5.93044973,133.8,133.77,0.05022704]
[1767492689437,0.05272429,133.81,133.77,0.05022704]
[1767492689636,5.93140255,133.8,133.77,0.05022704]
[1767492689837,0.05272429,133.81,133.77,0.05022704]
[1767492690038,5.93140255,133.8,133.77,0.05022704]
[1767492690229,0.05272429,133.81,133.77,0.05022704]
[1767492690537,5.9321488,133.8,133.77,0.05022704]
[1767492690834,0.05272429,133.81,133.77,0.05022704]
[1767492691037,5.9180459,133.8,133.77,0.05022704]
[1767492691233,0.05272429,133.81,133.74,6.7323]
[1767492691535,7.82075519,133.8,133.7,3.48439748]
[1767492691736,5.9181389,133.79,133.7,3.48439748]
[1767492692036,1.90261629,133.8,133.7,3.48439748]
[1767492692037,5.9181389,133.78,133.7,3.48439748]
[1767492692240,1.90261629,133.8,133.72,3.33794115]
[1767492692440,0.05700474,133.75,133.73,0.04803539]
[1767492692737,0.05037925,133.75,133.73,0.04803539]
[1767492693435,1.90261629,133.8,133.73,0.04803539]
[1767492693635,5.91907104,133.79,133.73,0.04803539]
[1767492693836,5.91907104,133.78,133.73,0.04803539]
[1767492694036,1.90261629,133.8,133.73,0.04803539]
[1767492694240,5.91967487,133.79,133.73,0.04803539]
[1767492694427,0.04912826,133.77,133.73,0.04803539]
[1767492697546,0.04912826,133.77,133.73,3.38597654]
[1767492697747,8.63081629,133.83,133.74,3.33794115]
[1767492697942,5.92256157,133.82,133.74,3.33794115]
[1767492698141,5.92256157,133.81,133.74,3.33794115]
[1767492698345,5.92256157,133.8,133.74,3.33794115]
[1767492698548,6.7282,133.83,133.74,3.33794115]
[1767492698733,5.92385777,133.82,133.77,0.05201538]
[1767492698937,0.05363709,133.8,133.77,0.05201538]
[1767492701249,5.92755512,133.79,133.77,0.05201538]
[1767492701449,0.05363709,133.8,133.77,0.05201538]
[1767492701743,5.92743426,133.79,133.77,0.05201538]
[1767492701949,0.05363709,133.8,133.77,0.05201538]
[1767492702151,5.92748099,133.79,133.77,0.05201538]
[1767492702344,0.05363709,133.8,133.77,0.05201538]
[1767492702551,5.92873503,133.79,133.77,0.05201538]
[1767492702752,0.05363709,133.8,133.77,0.05201538]
[1767492703051,5.92867456,133.79,133.77,0.05201538]
[1767492703350,0.05363709,133.8,133.77,0.05201538]
[1767492703553,5.92999767,133.79,133.77,0.05201538]
[1767492703850,0.05363709,133.8,133.77,0.05201538]
[1767492704052,5.93132027,133.79,133.77,0.05201538]
[1767492704253,0.05363709,133.8,133.77,0.05201538]
[1767492704449,5.93223955,133.79,133.77,0.05201538]
[1767492704645,5.93187242,133.78,133.72,6.7331]
[1767492704847,5.93135506,133.77,133.71,5.24055744]
[1767492705042,1.90261629,133.81,133.71,3.33794115]
[1767492705250,5.93125504,133.8,133.71,3.33794115]
[1767492705557,0.04858962,133.77,133.74,0.05091697]
[1767492708251,5.92900292,133.76,133.74,0.05091697]
[1767492708559,0.04858962,133.77,133.74,0.05091697]
[1767492708758,5.92850702,133.76,133.71,3.33794115]
[1767492708954,0.04858962,133.77,133.71,3.33794115]
[1767492709252,5.95144902,133.76,133.71,3.33794115]
[1767492709456,0.04858962,133.77,133.71,3.33794115]
[1767492709660,5.95103622,133.76,133.71,3.33794115]
[1767492709855,0.04858962,133.77,133.73,0.05580597]
[1767492710058,5.95113012,133.76,133.73,0.05580597]
[1767492710260,0.04858962,133.77,133.73,0.05580597]
[1767492710451,5.95078633,133.76,133.73,0.05580597]
[1767492710657,0.04858962,133.77,133.73,0.05580597]
[1767492710963,5.95078633,133.76,133.73,0.05580597]
[1767492711258,0.04858962,133.77,133.73,0.05580597]
[1767492711461,5.95028286,133.76,133.73,0.05580597]
[1767492711653,0.04858962,133.77,133.73,0.05580597]
[1767492711854,5.9498429,133.76,133.73,0.05580597]
[1767492712055,0.04858962,133.77,133.73,0.05580597]
[1767492712352,5.94904817,133.76,133.73,0.05580597]
[1767492712553,0.04858962,133.77,133.73,0.05580597]
[1767492712759,5.94831881,133.76,133.73,0.05580597]
[1767492712961,0.04858962,133.77,133.73,0.05580597]
[1767492713258,5.94825216,133.76,133.73,0.05580597]
[1767492713462,5.94825216,133.75,133.73,0.05580597]
[1767492713654,0.04858962,133.77,133.73,0.05580597]
[1767492713854,5.94733431,133.76,133.73,0.05580597]
[1767492714056,5.94733431,133.75,133.73,0.05580597]
[1767492714255,0.04858962,133.77,133.73,0.05580597]
[1767492714556,5.94654069,133.76,133.73,0.05580597]
[1767492714756,0.04858962,133.77,133.73,0.05580597]
[1767492714963,5.94654069,133.76,133.73,0.05580597]
[1767492715258,0.04858962,133.77,133.73,0.05580597]
[1767492715461,5.94583356,133.76,133.73,0.05580597]
[1767492715659,0.04858962,133.77,133.73,0.05580597]
[1767492715958,5.94583356,133.76,133.73,0.05580597]
[1767492716158,0.04858962,133.77,133.7,3.33794115]
[1767492716159,5.9458866,133.75,133.7,3.33794115]
[1767492716354,6.7307,133.78,133.7,3.33794115]
[1767492716559,5.94500799,133.77,133.7,3.33794115]
[1767492716860,5.94500799,133.76,133.7,3.33794115]
[1767492717163,5.94500799,133.75,133.7,3.33794115]
[1767492717352,0.05615119,133.74,133.72,0.04866007]
[1767492721064,6.7307,133.78,133.72,0.04866007]
[1767492721359,5.93422479,133.77,133.72,0.04866007]
[1767492721554,5.93422479,133.76,133.72,0.04866007]
[1767492721751,5.93422479,133.75,133.72,0.04866007]
[1767492721959,6.7307,133.78,133.72,0.04866007]
[1767492722154,0.04759991,133.76,133.72,0.04866007]
[1767492722356,5.93408744,133.75,133.72,0.04866007]
[1767492722546,0.04759991,133.76,133.72,3.63668834]
[1767492722754,5.93340273,133.75,133.72,3.63668834]
[1767492723057,0.04759991,133.76,133.72,3.63668834]
[1767492723254,6.7296,133.8,133.72,3.63668834]
[1767492723461,5.93334796,133.79,133.72,3.63668834]
[1767492723658,5.93334796,133.78,133.72,3.63668834]
[1767492723853,5.93334796,133.77,133.72,3.63668834]
[1767492724061,6.7296,133.8,133.72,3.63668834]
[1767492724256,0.0511259,133.77,133.72,3.63668834]
[1767492724960,0.0511259,133.77,133.72,0.04866007]
[1767492726165,5.85603964,133.76,133.68,3.58802827]
[1767492726456,5.85603964,133.75,133.68,3.58802827]
[1767492726655,1.90261629,133.78,133.68,3.58802827]
[1767492726852,5.85501771,133.77,133.68,3.58802827]
[1767492727057,5.85501771,133.76,133.68,3.58802827]
[1767492727264,0.05030199,133.74,133.71,0.05054446]
[1767492737683,5.85189527,133.73,133.67,3.58802827]
[1767492737882,0.05030199,133.74,133.67,3.58802827]
[1767492738079,5.85189258,133.73,133.67,3.58802827]
[1767492738280,0.05030199,133.74,133.67,3.58802827]
[1767492738480,5.85052079,133.73,133.67,3.58802827]
[1767492738671,0.05030199,133.74,133.67,3.58802827]
[1767492738876,5.85052079,133.73,133.69,0.05113188]
[1767492739175,0.05030199,133.74,133.69,0.05113188]
[1767492739378,5.84893838,133.73,133.69,0.05113188]
[1767492739684,0.05030199,133.74,133.69,0.05113188]
[1767492739884,5.84891155,133.73,133.69,0.05113188]
[1767492740078,0.05030199,133.74,133.69,0.05113188]
[1767492740269,5.847952,133.73,133.69,0.05113188]
[1767492740474,0.05030199,133.74,133.69,0.05113188]
[1767492740674,5.84781049,133.73,133.69,0.05113188]
[1767492740882,0.05030199,133.74,133.69,0.05113188]
[1767492741184,5.84781049,133.73,133.69,0.05113188]
[1767492741380,0.05030199,133.74,133.69,0.05113188]
[1767492742079,0.05030199,133.74,133.69,3.63916015]
[1767492743986,6.7302,133.79,133.7,3.58802827]
[1767492744179,5.8473775,133.78,133.71,3.58802827]
[1767492744377,5.8473775,133.77,133.71,3.58802827]
[1767492744586,6.7302,133.79,133.71,3.58802827]
[1767492744786,5.84959994,133.78,133.71,3.58802827]
[1767492744997,5.84959994,133.77,133.71,3.58802827]
[1767492745192,0.04959894,133.76,133.73,0.05297388]
[1767492747282,0.04959894,133.76,133.73,3.64100215]
[1767492747597,95.1091,133.81,133.73,3.64100215]
[1767492747885,5.85478109,133.8,133.73,3.64100215]
[1767492748085,5.85478109,133.79,133.73,3.64100215]
[1767492748385,0.05515005,133.77,133.73,3.64100215]
[1767492752584,0.05515005,133.77,133.73,4.85896575]
[1767492755593,0.05515005,133.77,133.73,1.27093748]
[1767492758196,0.05515005,133.77,133.73,4.5833222]
[1767492766117,0.05515005,133.77,133.73,3.3653586]
[1767492766914,6.7296,133.8,133.73,3.3653586]
[1767492767102,5.85454646,133.79,133.73,3.3653586]
[1767492767308,5.85454646,133.78,133.73,3.3653586]
[1767492767515,10.80576316,133.82,133.75,3.31238472]
[1767492768014,0.05186691,133.8,133.77,0.05717476]
[1767492771919,2.85895428,133.79,133.73,3.31238472]
[1767492772905,2.85895428,133.79,133.75,0.05215056]
[1767492774015,1.26983051,133.8,133.75,3.36453528]
[1767492778926,4.1129323,133.8,133.75,3.36453528]
[1767492779622,5.83384724,133.79,133.75,3.36453528]
[1767492779818,5.83384724,133.78,133.75,3.36453528]
[1767492780024,11.24859284,133.8,133.75,3.36453528]
[1767492780214,8.67254908,133.79,133.75,0.05215056]
[1767492780412,5.83380128,133.78,133.75,0.05215056]
[1767492780624,2.8387478,133.79,133.75,0.05215056]
[1767492780925,5.84117749,133.78,133.75,0.05215056]
[1767492781113,2.8387478,133.79,133.75,0.05215056]
[1767492781313,5.8414393,133.78,133.75,0.05215056]
[1767492781518,2.8387478,133.79,133.75,0.05215056]
[1767492781719,5.84145005,133.78,133.75,0.05215056]
[1767492781920,2.8387478,133.79,133.75,0.05215056]
[1767492782117,5.84145005,133.78,133.75,0.05215056]
[1767492782319,2.8387478,133.79,133.75,0.05215056]
[1767492782516,5.84209177,133.78,133.75,0.05215056]
[1767492782719,2.8387478,133.79,133.75,0.05215056]
[1767492782921,5.84209713,133.78,133.75,0.05215056]
[1767492783120,2.8387478,133.79,133.75,0.05215056]
[1767492783423,5.84344767,133.78,133.75,0.05215056]
[1767492783624,2.8387478,133.79,133.75,0.05215056]
[1767492783822,5.84369799,133.78,133.75,0.05215056]
[1767492784025,2.83044265,133.78,133.75,0.05215056]
[1767492784220,5.84513995,133.77,133.73,3.59266202]
[1767492784421,2.83044265,133.78,133.73,3.59266202]
[1767492784625,5.84539691,133.77,133.73,3.59266202]
[1767492784826,2.83044265,133.78,133.73,3.59266202]
[1767492785017,5.84539691,133.77,133.73,3.59266202]
[1767492785215,2.83044265,133.78,133.73,3.59266202]
[1767492785216,0.05332726,133.76,133.74,0.05164532]
[1767492797641,5.86060391,133.75,133.74,0.05164532]
[1767492803454,0.05332726,133.76,133.74,0.05164532]
[1767492804555,0.05332726,133.76,133.71,6.7337]
[1767492804556,2.84754237,133.76,133.71,6.7337]
[1767492804755,2.84754237,133.76,133.71,10.32636202]
[1767492805648,2.84754237,133.76,133.72,0.04831588]
[1767492809354,5.86003367,133.75,133.72,0.04831588]
[1767492809555,2.84754237,133.76,133.72,0.04831588]
[1767492809755,8.59324986,133.75,133.72,0.04831588]
[1767492809956,2.73322697,133.75,133.72,0.04831588]
[1767492811054,5.90974577,133.74,133.69,3.59266202]
[1767492811354,2.73322697,133.75,133.69,3.59266202]
[1767492811553,5.90844454,133.74,133.69,3.59266202]
[1767492811756,2.73322697,133.75,133.69,3.59266202]
[1767492811956,0.04929679,133.73,133.71,0.0534273]
[1767492812655,8.58535257,133.72,133.66,10.0244523]
[1767492812858,5.90611481,133.71,133.66,10.0244523]
[1767492813055,2.67923776,133.72,133.67,3.2882523]
[1767492813250,5.90625094,133.71,133.67,3.2882523]
[1767492813451,2.67923776,133.72,133.67,3.2882523]
[1767492813653,5.95252245,133.71,133.68,0.05384489]
[1767492813853,0.05017198,133.71,133.68,0.05384489]
[1767492814054,2.67781814,133.74,133.68,3.34209719]
[1767492814255,5.90435867,133.73,133.68,3.34209719]
[1767492814454,2.67781814,133.74,133.68,3.34209719]
[1767492814654,5.90236745,133.73,133.68,3.34209719]
[1767492814852,2.67781814,133.74,133.68,3.34209719]
[1767492815057,0.05555151,133.72,133.68,3.34209719]
[1767492823855,0.05555151,133.72,133.68,10.07729719]
[1767492824055,0.05555151,133.72,133.69,3.2882523]
[1767492839277,2.70277974,133.79,133.72,3.2882523]
[1767492839482,5.90384954,133.78,133.72,3.2882523]
[1767492839777,5.90384954,133.77,133.72,3.2882523]
[1767492840478,0.04947158,133.76,133.73,0.05385971]
[1767492840673,2.75019709,133.76,133.73,0.05385971]
[1767492843988,2.75019709,133.76,133.7,3.55037935]
[1767492844997,2.75019709,133.76,133.72,0.05428165]
[1767492849294,5.90723007,133.75,133.72,0.05428165]
[1767492849492,2.75019709,133.76,133.72,0.05428165]
[1767492849692,5.90717398,133.75,133.72,0.05428165]
[1767492849991,2.75019709,133.76,133.72,0.05428165]
[1767492850192,5.90716855,133.75,133.72,0.05428165]
[1767492850392,2.75019709,133.76,133.72,0.05428165]
[1767492850595,5.90793315,133.75,133.72,0.05428165]
[1767492850796,2.75019709,133.76,133.72,0.05428165]
[1767492850997,5.90791955,133.75,133.72,0.05428165]
[1767492851194,2.75019709,133.76,133.72,0.05428165]
[1767492851395,8.59886647,133.75,133.72,0.05428165]
[1767492851603,5.90841572,133.74,133.72,0.05428165]
[1767492851792,2.69009629,133.75,133.72,0.05428165]
[1767492851989,5.90841572,133.74,133.72,0.05428165]
[1767492852189,2.69009629,133.75,133.72,0.05428165]
[1767492852394,5.90936336,133.74,133.72,0.05428165]
[1767492852594,2.69009629,133.75,133.72,0.05428165]
[1767492852796,5.90937697,133.74,133.72,0.05428165]
[1767492852992,2.69009629,133.75,133.72,0.05428165]
[1767492853200,5.90937697,133.74,133.72,0.05428165]
[1767492853393,2.69009629,133.75,133.72,0.05428165]
[1767492853593,5.91093457,133.74,133.72,0.05428165]
[1767492853793,2.69009629,133.75,133.72,0.05428165]
[1767492854000,5.91094545,133.74,133.72,0.05428165]
[1767492854193,2.69009629,133.75,133.72,0.05428165]
[1767492854506,5.91207361,133.74,133.72,0.05428165]
[1767492854705,2.69009629,133.75,133.72,0.05428165]
[1767492854897,5.91199308,133.74,133.72,0.05428165]
[1767492855195,2.69009629,133.75,133.72,0.05428165]
[1767492855395,5.91276349,133.74,133.72,0.05428165]
[1767492855597,2.69009629,133.75,133.72,0.05428165]
[1767492855793,5.91281934,133.74,133.72,0.05428165]
[1767492855993,2.69009629,133.75,133.72,0.05428165]
[1767492856193,5.91281934,133.74,133.72,0.05428165]
[1767492856395,2.69009629,133.75,133.72,0.05428165]
[1767492856693,5.91289058,133.74,133.72,0.05428165]
[1767492856894,2.69009629,133.75,133.72,0.05428165]
[1767492857095,5.91290427,133.74,133.72,0.05428165]
[1767492857295,2.69009629,133.75,133.72,0.05428165]
[1767492857502,5.91305173,133.74,133.72,0.05428165]
[1767492857705,2.69009629,133.75,133.72,0.05428165]
[1767492858002,5.91300516,133.74,133.72,0.05428165]
[1767492858191,2.69009629,133.75,133.72,0.05428165]
[1767492858390,5.91329955,133.74,133.72,0.05428165]
[1767492858595,2.69009629,133.75,133.72,0.05428165]
[1767492858796,5.91344636,133.74,133.72,0.05428165]
[1767492858997,2.69009629,133.75,133.72,0.05428165]
[1767492859197,5.91344636,133.74,133.72,0.05428165]
[1767492859397,2.69009629,133.75,133.72,0.05428165]
[1767492859600,5.9135298,133.74,133.72,0.05428165]
[1767492859793,2.69009629,133.75,133.72,0.05428165]
[1767492860000,8.5957218,133.74,133.69,88.38]
[1767492860203,5.91336244,133.73,133.69,88.38]
[1767492860403,2.68235936,133.74,133.69,88.38]
[1767492860705,5.91345638,133.73,133.69,88.38]
[1767492860910,2.68235936,133.74,133.69,88.38]
[1767492861109,0.0560174,133.72,133.7,0.05042138]
[1767492863401,2.68235936,133.74,133.7,0.05042138]
[1767492864510,0.05115838,133.73,133.7,0.05042138]
[1767492865709,0.05115838,133.73,133.7,3.60080073]
[1767492866711,2.67763068,133.76,133.7,3.60080073]
[1767492867011,5.91349881,133.75,133.7,3.60080073]
[1767492867199,5.91349881,133.74,133.7,3.60080073]
[1767492867403,2.67763068,133.76,133.7,3.60080073]
[1767492867613,5.91369707,133.75,133.7,3.60080073]
[1767492867802,5.91369707,133.74,133.7,3.60080073]
[1767492868004,2.67763068,133.76,133.7,3.60080073]
[1767492868310,5.91149,133.75,133.7,3.60080073]
[1767492868504,5.91149,133.74,133.7,3.60080073]
[1767492868706,2.67763068,133.76,133.7,3.60080073]
[1767492868906,5.91168107,133.75,133.7,3.60080073]
[1767492869113,5.91168107,133.74,133.7,3.60080073]
[1767492869312,2.67763068,133.76,133.7,3.60080073]
[1767492869513,5.91173857,133.75,133.7,3.60080073]
[1767492869713,5.91173857,133.74,133.7,3.60080073]
[1767492869914,2.67763068,133.76,133.7,3.60080073]
[1767492870211,5.91163172,133.75,133.7,3.60080073]
[1767492870413,5.91163172,133.74,133.7,3.60080073]
[1767492870605,0.04847186,133.73,133.7,3.60080073]
[1767492870810,2.67763068,133.76,133.7,3.60080073]
[1767492871011,5.90836081,133.75,133.7,3.60080073]
[1767492871208,5.90836081,133.74,133.7,3.60080073]
[1767492871409,2.67763068,133.76,133.7,3.60080073]
[1767492871609,5.90857549,133.75,133.7,3.60080073]
[1767492871812,5.9584665,133.74,133.7,3.60080073]
[1767492872010,0.04989101,133.74,133.7,3.60080073]
[1767492877207,2.71421215,133.74,133.7,0.05042138]
[1767492880120,5.92785763,133.73,133.7,0.05042138]
[1767492880310,2.71421215,133.74,133.7,0.05042138]
[1767492880515,5.9285056,133.73,133.7,0.05042138]